[Event "3rd FIDE WCCC Blitz G08 2019"]
[Site "Minsk"]
[Date "2019.08.18"]
[Round "1.1"]
[White "Dandish, Izabella"]
[Black "Zhabina, Maria"]
[Result "1-0"]
[ECO "C60"]
[WhiteElo "1563"]
[BlackElo "1030"]
[Annotator "NA"]
[PlyCount "63"]
[EventDate "2019.08.18"]
[EventType "swiss"]
[EventCountry "BLR"]
[SourceTitle "playchess.com"]
[Source "ChessBase"]
[SourceQuality "1"]
[TimeControl "300+2"]

1. e4 {[%emt 0:00:00]} e5 {[%emt 0:00:00]} 2. Nf3 {[%emt 0:00:01]} Nc6 {[%emt 0:00:00]} 3. Bb5 {[%emt 0:00:00]} Qf6 {[%emt 0:00:02]} 4. Bxc6 {[%emt 0:00:04]} dxc6 {[%emt 0:00:02]} 5. Nc3 {[%emt 0:00:05]} Bg4 {[%emt 0:00:10]} 6. h3 {[%emt 0:00:03]} Bxf3 {[%emt 0:00:02]} 7. Qxf3 {[%emt 0:00:01]} Qxf3 {[%emt 0:00:01]} 8. gxf3 {[%emt 0:00:01]} Nf6 {[%emt 0:00:02]} 9. d3 {[%emt 0:00:03]} Bb4 {[%emt 0:00:02]} 10. Bd2 {[%emt 0:00:01]} O-O {[%emt 0:00:08]} 11. Rg1 {[%emt 0:00:04]} Bxc3 {[%emt 0:00:11]} 12. Bxc3 {[%emt 0:00:01]} Rfe8 {[%emt 0:00:04]} 13. Bd2 {[%emt 0:00:09]} Kh8 {[%emt 0:00:13]} 14. Rg3 {[%emt 0:00:08]} Nh5 {[%emt 0:00:12]} 15. Rg5 {[%emt 0:00:02]} Nf6 {[%emt 0:00:02]} 16. Bc3 {[%emt 0:00:08]} Nd7 {[%emt 0:00:11]} 17. Kd2 {[%emt 0:00:06]} h6 {[%emt 0:00:06]} 18. Rg3 {[%emt 0:00:04]} Re6 {[%emt 0:00:08]} 19. Rag1 {[%emt 0:00:04]} g6 {[%emt 0:00:09]} 20. f4 {[%emt 0:00:05]} h5 {[%emt 0:00:08]} 21. f5 {[%emt 0:00:03]} Rf6 {[%emt 0:00:12]} 22. Ke3 {[%emt 0:00:02]} Rg8 {[%emt 0:00:23]} 23. Kf3 {[%emt 0:00:19]} c5 {[%emt 0:00:19]} 24. Ke3 {[%emt 0:00:17]} b5 {[%emt 0:00:04]} 25. b3 {[%emt 0:00:03]} b4 {[%emt 0:00:03]} 26. Bb2 {[%emt 0:00:01]} a5 {[%emt 0:00:04]} 27. f4 {[%emt 0:00:06]} Re8 {[%emt 0:00:44]} 28. Kf3 {[%emt 0:00:28]} c6 {[%emt 0:00:31]} 29. fxe5 {[%emt 0:00:14]} Nxe5+ {[%emt 0:00:09]} 30. Kf4 {[%emt 0:00:12]} g5+ {[%emt 0:01:00]} 31. Rxg5 {[%emt 0:00:05]} Nd7 {[%emt 0:00:25]} 32. Rxh5# {[%emt 0:02:53] Rh6 Rh4+ Rf6} 1-0

[Event "3rd FIDE WCCC Blitz G08 2019"]
[Site "Minsk"]
[Date "2019.08.18"]
[Round "1.2"]
[White "Mierina, Lauma"]
[Black "Frolova, Umila"]
[Result "0-1"]
[ECO "B08"]
[WhiteElo "1014"]
[BlackElo "1252"]
[Annotator "NA"]
[PlyCount "114"]
[EventDate "2019.08.18"]
[EventType "swiss"]
[EventCountry "BLR"]
[SourceTitle "playchess.com"]
[Source "ChessBase"]
[SourceQuality "1"]
[TimeControl "300+2"]

1. e4 {[%emt 0:00:00]} g6 {[%emt 0:00:00]} 2. Nf3 {[%emt 0:00:01]} Bg7 {[%emt 0:00:00]} 3. d4 {[%emt 0:00:01]} d6 {[%emt 0:00:00]} 4. Nc3 {[%emt 0:00:03]} Nf6 {[%emt 0:00:01]} 5. Bg5 {[%emt 0:00:08]} h6 {[%emt 0:00:04]} 6. Bxf6 {[%emt 0:00:07]} Bxf6 {[%emt 0:00:03]} 7. Bc4 {[%emt 0:00:09]} Bg7 {[%emt 0:00:02]} 8. O-O {[%emt 0:00:05]} O-O {[%emt 0:00:03]} 9. Qd2 {[%emt 0:00:05]} Nd7 {[%emt 0:00:09]} 10. Rad1 {[%emt 0:00:14]} e5 {[%emt 0:00:04]} 11. d5 {[%emt 0:00:02]} a5 {[%emt 0:00:08]} 12. Be2 {[%emt 0:00:08]} Nc5 {[%emt 0:00:04]} 13. a3 {[%emt 0:00:09]} a4 {[%emt 0:00:14]} 14. Rfe1 {[%emt 0:00:12]} Kh7 {[%emt 0:00:07]} 15. h3 {[%emt 0:00:13]} Qe7 {[%emt 0:00:32]} 16. Rb1 {[%emt 0:00:12]} Re8 {[%emt 0:00:46]} 17. Bb5 {[%emt 0:00:09]} Rf8 {[%emt 0:00:12]} 18. Kh1 {[%emt 0:00:15]} Bd7 {[%emt 0:00:10]} 19. Bxd7 {[%emt 0:00:03]} Nxd7 {[%emt 0:00:13]} 20. Qc1 {[%emt 0:00:07]} Nc5 {[%emt 0:00:11]} 21. Qd1 {[%emt 0:00:07]} Nd7 {[%emt 0:00:21]} 22. Nb5 {[%emt 0:00:13]} Nc5 {[%emt 0:00:04]} 23. Nc3 {[%emt 0:00:02]} Nd7 {[%emt 0:00:11]} 24. Re2 {[%emt 0:00:03]} Nc5 {[%emt 0:00:02]} 25. Qf1 Qf6 {[%emt 0:00:13]} 26. Ree1 {[%emt 0:00:14]} Qe7 {[%emt 0:00:09]} 27. Qc4 {[%emt 0:00:13]} Qd7 {[%emt 0:00:14]} 28. Qb5 {[%emt 0:00:08]} c6 {[%emt 0:00:08]} 29. dxc6 {[%emt 0:00:10]} bxc6 {[%emt 0:00:01]} 30. Qf1 {[%emt 0:00:06]} Rfb8 {[%emt 0:00:03]} 31. Re3 {[%emt 0:00:08]} Qe6 {[%emt 0:00:07]} 32. Kg1 {[%emt 0:00:08]} Rb7 {[%emt 0:00:06]} 33. Qd1 {[%emt 0:00:06]} Rab8 {[%emt 0:00:05]} 34. Qc1 {[%emt 0:00:20]} h5 {[%emt 0:00:23]} 35. Re2 {[%emt 0:00:15]} Bh6 {[%emt 0:00:01]} 36. Ng5+ {[%emt 0:00:09]} Bxg5 {[%emt 0:00:05]} 37. Qxg5 {[%emt 0:00:04]} Rxb2 {[%emt 0:00:01]} 38. Rxb2 {[%emt 0:00:02]} Rxb2 {[%emt 0:00:01]} 39. Kh2 {[%emt 0:00:17]} f6 {[%emt 0:00:08]} 40. Qc1 {[%emt 0:00:05]} Rb8 {[%emt 0:00:01]} 41. Re1 {[%emt 0:00:08]} d5 {[%emt 0:00:09]} 42. exd5 {[%emt 0:00:04]} cxd5 {[%emt 0:00:00]} 43. Rd1 {[%emt 0:00:04]} d4 {[%emt 0:00:02]} 44. Ne2 {[%emt 0:00:04]} f5 {[%emt 0:00:03]} 45. Ng3 {[%emt 0:00:02]} f4 {[%emt 0:00:03]} 46. Nf1 {[%emt 0:00:03]} g5 {[%emt 0:00:02]} 47. Nd2 {[%emt 0:00:02]} Rc8 {[%emt 0:00:04]} 48. Nf3 {[%emt 0:00:02]} Qf5 {[%emt 0:00:06]} 49. Re1 {[%emt 0:00:03]} Nd7 {[%emt 0:00:03]} 50. Nd2 {[%emt 0:00:03]} Rxc2 {[%emt 0:00:03]} 51. Qd1 {[%emt 0:00:03]} Ra2 {[%emt 0:00:05]} 52. Qxa4 {[%emt 0:00:04]} Rxd2 {[%emt 0:00:03]} 53. Qa7 {[%emt 0:00:02]} Rxf2 {[%emt 0:00:05]} 54. a4 {[%emt 0:00:02]} f3 {[%emt 0:00:02]} 55. Kg1 {[%emt 0:00:05]} Rxg2+ {[%emt 0:00:01]} 56. Kf1 {[%emt 0:00:02]} Qd3+ {[%emt 0:00:02]} 57. Re2 {[%emt 0:00:03]} Qxe2# {[%emt 0:00:01]} 0-1

[Event "3rd FIDE WCCC Blitz G08 2019"]
[Site "Minsk"]
[Date "2019.08.18"]
[Round "2.1"]
[White "Izafatava, Kira"]
[Black "Dandish, Izabella"]
[Result "1-0"]
[ECO "D00"]
[WhiteElo "1144"]
[BlackElo "1563"]
[Annotator "NA"]
[PlyCount "61"]
[EventDate "2019.08.18"]
[EventType "swiss"]
[EventCountry "BLR"]
[SourceTitle "playchess.com"]
[Source "ChessBase"]
[SourceQuality "1"]
[TimeControl "300+2"]

1. d4 {[%emt 0:00:00]} d5 {[%emt 0:00:00]} 2. e3 {[%emt 0:00:00]} Nf6 {[%emt 0:00:03]} 3. f4 {[%emt 0:00:00]} Bf5 {[%emt 0:00:03]} 4. Nc3 {[%emt 0:00:02]} a6 {[%emt 0:00:09]} 5. Nf3 {[%emt 0:00:01]} e6 {[%emt 0:00:11]} 6. Bd3 {[%emt 0:00:02]} Be4 {[%emt 0:00:17]} 7. Bxe4 {[%emt 0:00:08]} Nxe4 {[%emt 0:00:03]} 8. Nxe4 {[%emt 0:00:06]} dxe4 {[%emt 0:00:02]} 9. Ne5 {[%emt 0:00:09]} Nd7 {[%emt 0:00:11]} 10. O-O {[%emt 0:00:22]} Nxe5 {[%emt 0:00:04]} 11. fxe5 {[%emt 0:00:02]} Be7 {[%emt 0:00:18]} 12. Qg4 {[%emt 0:00:04]} g6 {[%emt 0:00:26]} 13. Qxe4 {[%emt 0:00:06]} Qd5 {[%emt 0:00:09]} 14. Qf4 {[%emt 0:00:11]} Rf8 {[%emt 0:00:44]} 15. b3 {[%emt 0:00:10]} g5 {[%emt 0:00:08]} 16. Qg4 {[%emt 0:00:15]} O-O-O {[%emt 0:00:38]} 17. c4 Qc6 18. d5 {[%emt 0:00:14]} Qc5 {[%emt 0:00:14]} 19. dxe6 {[%emt 0:00:03]} Qxe5 {[%emt 0:00:13]} 20. exf7+ {[%emt 0:00:03]} Kb8 {[%emt 0:00:01]} 21. Rb1 {[%emt 0:00:39]} Bc5 {[%emt 0:00:15]} 22. Bb2 {[%emt 0:00:27]} Qxe3+ {[%emt 0:00:02]} 23. Kh1 {[%emt 0:00:04]} Rd2 {[%emt 0:00:20]} 24. Bg7 {[%emt 0:00:08]} Rxf7 {[%emt 0:00:11]} 25. Rxf7 {[%emt 0:00:18]} Rxg2 {[%emt 0:00:27]} 26. Qxg2 {[%emt 0:00:24]} Qd3 {[%emt 0:00:04]} 27. Rbf1 {[%emt 0:00:13]} Qg6 {[%emt 0:00:07]} 28. Qd5 {[%emt 0:00:14]} Bd6 {[%emt 0:00:05]} 29. Rf8+ {[%emt 0:00:18]} Ka7 {[%emt 0:00:07]} 30. Bd4+ {[%emt 0:00:09]} c5 {[%emt 0:00:11]} 31. Bxc5+ {[%emt 0:00:03] Qe8} 1-0

[Event "3rd FIDE WCCC Blitz G08 2019"]
[Site "Minsk"]
[Date "2019.08.18"]
[Round "2.2"]
[White "Frolova, Umila"]
[Black "Olimova, Rukiya"]
[Result "1-0"]
[ECO "C11"]
[WhiteElo "1252"]
[BlackElo "1178"]
[Annotator "NA"]
[PlyCount "111"]
[EventDate "2019.08.18"]
[EventType "swiss"]
[EventCountry "BLR"]
[SourceTitle "playchess.com"]
[Source "ChessBase"]
[SourceQuality "1"]
[TimeControl "300+2"]

1. e4 {[%emt 0:00:00]} e6 {[%emt 0:00:01]} 2. Nf3 {[%emt 0:00:00]} d5 {[%emt 0:00:03]} 3. Nc3 {[%emt 0:00:01]} d4 {[%emt 0:00:02]} 4. Ne2 {[%emt 0:00:02]} c5 {[%emt 0:00:01]} 5. c3 {[%emt 0:00:03]} d3 {[%emt 0:00:08]} 6. Nf4 {[%emt 0:00:01]} Nc6 {[%emt 0:00:32]} 7. Nxd3 {[%emt 0:00:07]} Nf6 {[%emt 0:00:06]} 8. e5 {[%emt 0:00:04]} Nd5 {[%emt 0:00:04]} 9. c4 {[%emt 0:00:13]} Nb6 {[%emt 0:00:01]} 10. Nf4 {[%emt 0:00:11]} Qc7 {[%emt 0:00:05]} 11. Qe2 {[%emt 0:00:26]} Be7 {[%emt 0:00:26]} 12. g3 {[%emt 0:00:14]} Bd7 {[%emt 0:00:47]} 13. Bg2 {[%emt 0:00:02]} Rd8 {[%emt 0:00:29]} 14. O-O {[%emt 0:00:10]} O-O {[%emt 0:00:05]} 15. b3 {[%emt 0:00:42]} Nd4 {[%emt 0:00:32]} 16. Nxd4 {[%emt 0:00:04]} cxd4 {[%emt 0:00:02]} 17. Bb2 {[%emt 0:00:18]} Bc6 {[%emt 0:00:06]} 18. Bxc6 Qxc6 {[%emt 0:00:02]} 19. d3 {[%emt 0:00:19]} Nd7 {[%emt 0:00:28]} 20. Bxd4 {[%emt 0:00:24]} Bc5 {[%emt 0:00:15]} 21. Bxc5 {[%emt 0:00:05]} Nxc5 {[%emt 0:00:02]} 22. Rad1 {[%emt 0:00:22]} Rd4 {[%emt 0:00:10]} 23. b4 {[%emt 0:00:22]} Na4 {[%emt 0:00:05]} 24. Qc2 {[%emt 0:00:07]} Nb6 {[%emt 0:00:18]} 25. h4 {[%emt 0:00:10]} Rfd8 {[%emt 0:00:03]} 26. a3 {[%emt 0:00:08]} Qf3 {[%emt 0:00:08]} 27. Rfe1 {[%emt 0:00:23]} Nc8 {[%emt 0:00:13]} 28. Re3 {[%emt 0:00:07]} Qc6 {[%emt 0:00:03]} 29. Qe2 {[%emt 0:00:08]} Ne7 {[%emt 0:00:05]} 30. Qf3 {[%emt 0:00:04]} Nf5 {[%emt 0:00:07]} 31. Qxc6 {[%emt 0:00:03]} bxc6 {[%emt 0:00:01]} 32. Rf3 {[%emt 0:00:05]} Rb8 {[%emt 0:00:06]} 33. Ne2 {[%emt 0:00:05]} Rdd8 {[%emt 0:00:02]} 34. d4 {[%emt 0:00:02]} Ra8 35. a4 {[%emt 0:00:05]} a5 {[%emt 0:00:15]} 36. b5 {[%emt 0:00:01]} c5 {[%emt 0:00:02]} 37. Rfd3 {[%emt 0:00:07]} cxd4 {[%emt 0:00:02]} 38. Nxd4 {[%emt 0:00:01]} Nxd4 39. Rxd4 {[%emt 0:00:01]} Rxd4 {[%emt 0:00:05]} 40. Rxd4 {[%emt 0:00:01]} Kf8 {[%emt 0:00:03]} 41. c5 {[%emt 0:00:01]} Ke7 {[%emt 0:00:01]} 42. b6 {[%emt 0:00:01]} Rb8 {[%emt 0:00:02]} 43. Rd3 {[%emt 0:00:04]} Rb7 {[%emt 0:00:03]} 44. Rd6 {[%emt 0:00:01]} Rb8 {[%emt 0:00:02]} 45. Kf1 {[%emt 0:00:01]} Rb7 {[%emt 0:00:04]} 46. Ke2 {[%emt 0:00:01]} Rb8 {[%emt 0:00:01]} 47. Kd3 {[%emt 0:00:01]} g6 {[%emt 0:00:04]} 48. Kc4 {[%emt 0:00:01]} h5 {[%emt 0:00:03]} 49. Kb5 {[%emt 0:00:00]} Ra8 {[%emt 0:00:01]} 50. c6 {[%emt 0:00:02]} Ke8 {[%emt 0:00:02]} 51. b7 {[%emt 0:00:01]} Rb8 {[%emt 0:00:01]} 52. Kxa5 {[%emt 0:00:03]} Ke7 {[%emt 0:00:02]} 53. Kb6 {[%emt 0:00:01]} Ke8 {[%emt 0:00:02]} 54. c7 {[%emt 0:00:02]} Ke7 {[%emt 0:00:03]} 55. c8=Q {[%emt 0:00:05]} Rxc8 {[%emt 0:00:02]} 56. bxc8=Q {[%emt 0:00:03]} 1-0

[Event "3rd FIDE WCCC Blitz G08 2019"]
[Site "Minsk"]
[Date "2019.08.18"]
[Round "2.3"]
[White "Polakiewicz, Blanka"]
[Black "Ukrainskaya, Ilona"]
[Result "0-1"]
[ECO "B13"]
[WhiteElo "1135"]
[BlackElo "1211"]
[Annotator "NA"]
[PlyCount "152"]
[EventDate "2019.08.18"]
[EventType "swiss"]
[EventCountry "BLR"]
[SourceTitle "playchess.com"]
[Source "ChessBase"]
[SourceQuality "1"]
[TimeControl "300+2"]

1. e4 {[%emt 0:00:00]} c6 {[%emt 0:00:00]} 2. d4 {[%emt 0:00:00]} d5 {[%emt 0:00:03]} 3. exd5 {[%emt 0:00:02]} cxd5 {[%emt 0:00:02]} 4. Bd3 {[%emt 0:00:03]} Nc6 {[%emt 0:00:14]} 5. c3 {[%emt 0:00:05]} Nf6 {[%emt 0:00:30]} 6. h3 {[%emt 0:00:04]} Bd7 {[%emt 0:00:13]} 7. Nf3 {[%emt 0:00:07]} e6 {[%emt 0:00:19]} 8. O-O {[%emt 0:00:05]} Bd6 {[%emt 0:00:08]} 9. Be3 {[%emt 0:00:18]} O-O {[%emt 0:00:07]} 10. Nbd2 {[%emt 0:00:13]} Rc8 {[%emt 0:00:12]} 11. Qe2 {[%emt 0:00:44]} h6 {[%emt 0:00:09]} 12. Nb3 {[%emt 0:00:15]} Qc7 {[%emt 0:00:28]} 13. Bd2 {[%emt 0:00:56]} Rfe8 {[%emt 0:00:25]} 14. Bb5 {[%emt 0:00:22]} a6 {[%emt 0:00:06]} 15. Bd3 {[%emt 0:00:15]} Qb6 {[%emt 0:00:36]} 16. Ne5 {[%emt 0:00:31]} Qc7 {[%emt 0:00:18]} 17. Nxd7 {[%emt 0:00:19]} Qxd7 {[%emt 0:00:03]} 18. Kh1 {[%emt 0:00:08]} Kh8 {[%emt 0:00:06]} 19. Qf3 {[%emt 0:00:05]} Qe7 {[%emt 0:00:20]} 20. Rfe1 {[%emt 0:00:09]} Qd7 {[%emt 0:00:01]} 21. Bf4 {[%emt 0:00:05]} Bxf4 {[%emt 0:00:04]} 22. Qxf4 {[%emt 0:00:02]} Qc7 {[%emt 0:00:05]} 23. Qf3 {[%emt 0:00:16]} Qd6 {[%emt 0:00:08]} 24. Rab1 {[%emt 0:00:05]} Rc7 {[%emt 0:00:11]} 25. Nc5 {[%emt 0:00:07]} Rd8 {[%emt 0:00:13]} 26. Qe3 {[%emt 0:00:04]} Re8 {[%emt 0:00:06]} 27. Qf3 {[%emt 0:00:03]} Rd8 {[%emt 0:00:03]} 28. a3 {[%emt 0:00:07]} a5 {[%emt 0:00:07]} 29. b4 {[%emt 0:00:08]} axb4 {[%emt 0:00:05]} 30. axb4 {[%emt 0:00:02]} Ne7 {[%emt 0:00:05]} 31. Qe3 {[%emt 0:00:06]} b6 {[%emt 0:00:05]} 32. Nb3 {[%emt 0:00:03]} Rxc3 {[%emt 0:00:05]} 33. Qd2 {[%emt 0:00:03]} Rc7 {[%emt 0:00:01]} 34. Qe3 {[%emt 0:00:01]} Rc3 {[%emt 0:00:02]} 35. Qd2 {[%emt 0:00:01]} Rc7 {[%emt 0:00:01]} 36. Qe3 {[%emt 0:00:01]} Rdc8 {[%emt 0:00:01]} 37. Rbc1 {[%emt 0:00:04]} Rxc1 {[%emt 0:00:02]} 38. Rxc1 {[%emt 0:00:01]} Rxc1+ {[%emt 0:00:01]} 39. Qxc1 {[%emt 0:00:01]} Qd7 {[%emt 0:00:15]} 40. Qa3 {[%emt 0:00:07]} Qc8 {[%emt 0:00:03]} 41. Qa6 {[%emt 0:00:04]} Qxa6 {[%emt 0:00:02]} 42. Bxa6 {[%emt 0:00:02]} Kg8 {[%emt 0:00:00]} 43. Bd3 {[%emt 0:00:01]} Kf8 {[%emt 0:00:01]} 44. f4 {[%emt 0:00:04]} Nc6 {[%emt 0:00:01]} 45. Kg1 {[%emt 0:00:02]} Nxb4 {[%emt 0:00:02]} 46. Be2 {[%emt 0:00:02]} Nc2 {[%emt 0:00:01]} 47. Bd3 {[%emt 0:00:02]} Nxd4 {[%emt 0:00:02]} 48. Nxd4 {[%emt 0:00:01]} Ke7 {[%emt 0:00:03]} 49. Nc6+ {[%emt 0:00:02]} Kd6 {[%emt 0:00:01]} 50. Ne5 {[%emt 0:00:02]} Kc5 {[%emt 0:00:01]} 51. Nxf7 {[%emt 0:00:03]} b5 {[%emt 0:00:02]} 52. Ne5 {[%emt 0:00:01]} b4 {[%emt 0:00:01]} 53. Bc2 {[%emt 0:00:02]} Kd4 {[%emt 0:00:01]} 54. Nd3 {[%emt 0:00:02]} Kc3 {[%emt 0:00:01]} 55. Kf2 {[%emt 0:00:04]} Kxc2 {[%emt 0:00:05]} 56. Nxb4+ {[%emt 0:00:01]} Kb3 {[%emt 0:00:01]} 57. Nc6 {[%emt 0:00:03]} Ne4+ {[%emt 0:00:02]} 58. Ke3 {[%emt 0:00:01]} Kc4 {[%emt 0:00:01]} 59. Ne5+ {[%emt 0:00:02]} Kc3 {[%emt 0:00:02]} 60. Nf7 {[%emt 0:00:03]} d4+ {[%emt 0:00:01]} 61. Kf3 {[%emt 0:00:04]} d3 {[%emt 0:00:02]} 62. Ke3 {[%emt 0:00:02]} d2 {[%emt 0:00:01]} 63. Kxe4 {[%emt 0:00:03]} d1=Q {[%emt 0:00:03]} 64. Ke3 {[%emt 0:00:02]} Qd3+ {[%emt 0:00:01]} 65. Kf2 {[%emt 0:00:01]} Qe4 {[%emt 0:00:02]} 66. g3 {[%emt 0:00:02]} Qf5 {[%emt 0:00:02]} 67. Ne5 {[%emt 0:00:02]} Qc2+ {[%emt 0:00:02]} 68. Kf3 {[%emt 0:00:01]} Qd1+ {[%emt 0:00:01]} 69. Kf2 {[%emt 0:00:02]} Kd2 {[%emt 0:00:01]} 70. Kg2 {[%emt 0:00:02]} Qe2+ 71. Kg1 {[%emt 0:00:02]} Qe1+ {[%emt 0:00:03]} 72. Kg2 {[%emt 0:00:01]} Ke3 {[%emt 0:00:02]} 73. Ng4+ {[%emt 0:00:02]} Ke2 {[%emt 0:00:01]} 74. h4 {[%emt 0:00:03]} Qf1+ {[%emt 0:00:03]} 75. Kh2 {[%emt 0:00:02]} Kf3 {[%emt 0:00:02]} 76. h5 {[%emt 0:00:04]} Qg2# {[%emt 0:00:02]} 0-1

[Event "3rd FIDE WCCC Blitz G08 2019"]
[Site "Minsk"]
[Date "2019.08.18"]
[Round "2.4"]
[White "Lyapina, Mariya"]
[Black "Bausheva, Angelina"]
[Result "1-0"]
[ECO "A44"]
[WhiteElo "1349"]
[BlackElo "1043"]
[Annotator "NA"]
[PlyCount "66"]
[EventDate "2019.08.18"]
[EventType "swiss"]
[EventCountry "BLR"]
[SourceTitle "playchess.com"]
[Source "ChessBase"]
[SourceQuality "1"]
[TimeControl "300+2"]

1. d4 {[%emt 0:00:00]} c5 {[%emt 0:00:00]} 2. d5 {[%emt 0:00:03]} e5 {[%emt 0:00:00]} 3. c4 {[%emt 0:00:01]} d6 {[%emt 0:00:01]} 4. e4 {[%emt 0:00:05]} Be7 {[%emt 0:00:04]} 5. Nf3 {[%emt 0:00:02]} Bg4 {[%emt 0:00:02]} 6. Be2 {[%emt 0:00:02]} Bxf3 {[%emt 0:00:01]} 7. Bxf3 {[%emt 0:00:01]} Bg5 {[%emt 0:00:02]} 8. Bxg5 {[%emt 0:00:15]} Qxg5 9. Nc3 {[%emt 0:00:07]} a6 {[%emt 0:00:06]} 10. Qb3 {[%emt 0:00:20]} Qe7 {[%emt 0:00:28]} 11. Na4 {[%emt 0:00:17]} Nf6 {[%emt 0:00:46]} 12. Nb6 {[%emt 0:00:13]} Ra7 {[%emt 0:00:02]} 13. Nc8 {[%emt 0:00:02]} Qc7 {[%emt 0:00:17]} 14. Nxa7 {[%emt 0:00:03]} b6 {[%emt 0:00:03]} 15. Nc6 {[%emt 0:00:04]} Nxc6 {[%emt 0:00:05]} 16. dxc6 {[%emt 0:00:02]} Qxc6 {[%emt 0:00:03]} 17. O-O {[%emt 0:00:05]} O-O {[%emt 0:00:09]} 18. Rad1 {[%emt 0:00:01]} h5 {[%emt 0:00:16]} 19. Qd3 {[%emt 0:00:03]} Rd8 {[%emt 0:00:04]} 20. Rd2 {[%emt 0:00:05]} h4 {[%emt 0:00:08]} 21. Rfd1 {[%emt 0:00:04]} h3 {[%emt 0:00:11]} 22. Qa3 {[%emt 0:00:07]} a5 {[%emt 0:00:13]} 23. Re1 {[%emt 0:00:22]} g5 {[%emt 0:00:30]} 24. gxh3 {[%emt 0:00:06]} Kg7 {[%emt 0:00:09]} 25. Kh1 {[%emt 0:00:07]} Rh8 {[%emt 0:00:05]} 26. Bg2 {[%emt 0:00:04]} g4 {[%emt 0:00:11]} 27. Rg1 {[%emt 0:00:18]} Nxe4 {[%emt 0:00:20]} 28. Re2 {[%emt 0:00:17]} f5 {[%emt 0:00:09]} 29. hxg4 {[%emt 0:00:06]} Qd7 {[%emt 0:00:54]} 30. gxf5 {[%emt 0:00:08]} Ng5 {[%emt 0:00:10]} 31. Qg3 {[%emt 0:00:32]} Kf6 {[%emt 0:00:12]} 32. Bd5 {[%emt 0:00:18]} Qg7 {[%emt 0:00:09]} 33. h4 {[%emt 0:00:14]} Qh6 1-0

[Event "3rd FIDE WCCC Blitz G08 2019"]
[Site "Minsk"]
[Date "2019.08.18"]
[Round "2.5"]
[White "Kudrina, Evelina"]
[Black "Preobrazhenskaya, Diana"]
[Result "0-1"]
[ECO "A56"]
[WhiteElo "1194"]
[BlackElo "1361"]
[Annotator "NA"]
[PlyCount "110"]
[EventDate "2019.08.18"]
[EventType "swiss"]
[EventCountry "BLR"]
[SourceTitle "playchess.com"]
[Source "ChessBase"]
[SourceQuality "1"]
[TimeControl "300+2"]

1. d4 {[%emt 0:00:00]} Nf6 {[%emt 0:00:01]} 2. c4 {[%emt 0:00:02]} c5 {[%emt 0:00:03]} 3. Nc3 {[%emt 0:00:06]} cxd4 {[%emt 0:00:05]} 4. Qxd4 {[%emt 0:00:04]} Nc6 {[%emt 0:00:05]} 5. Qd1 {[%emt 0:00:02]} g6 {[%emt 0:00:05]} 6. Bf4 {[%emt 0:00:16]} Bg7 {[%emt 0:00:06]} 7. Nf3 {[%emt 0:00:01]} O-O {[%emt 0:00:09]} 8. g3 {[%emt 0:00:07]} d6 {[%emt 0:00:15]} 9. Bg2 {[%emt 0:00:05]} e5 {[%emt 0:00:23]} 10. Bg5 {[%emt 0:00:07]} h6 {[%emt 0:00:06]} 11. Be3 {[%emt 0:00:02]} e4 {[%emt 0:00:42]} 12. Nd4 {[%emt 0:00:03]} Nxd4 {[%emt 0:00:21]} 13. Bxd4 {[%emt 0:00:01]} Qe7 {[%emt 0:00:22]} 14. Rb1 {[%emt 0:00:45]} Bf5 {[%emt 0:00:13]} 15. O-O {[%emt 0:00:02]} e3 {[%emt 0:00:31]} 16. Rc1 {[%emt 0:00:02]} Ng4 {[%emt 0:00:22]} 17. f3 {[%emt 0:00:58]} Nf2 {[%emt 0:00:08]} 18. Rxf2 {[%emt 0:00:18]} exf2+ {[%emt 0:00:01]} 19. Kxf2 {[%emt 0:00:09]} Bxd4+ {[%emt 0:00:07]} 20. Qxd4 {[%emt 0:00:02]} Qe5 {[%emt 0:00:04]} 21. Qh4 {[%emt 0:00:17]} Qg7 {[%emt 0:00:12]} 22. g4 {[%emt 0:00:18]} g5 {[%emt 0:00:04]} 23. Qg3 {[%emt 0:00:02]} Qd4+ {[%emt 0:00:05]} 24. Kf1 {[%emt 0:00:19]} Bg6 {[%emt 0:00:09]} 25. Rd1 {[%emt 0:00:02]} Qe5 {[%emt 0:00:03]} 26. Rxd6 {[%emt 0:00:31]} Qxg3 {[%emt 0:00:03]} 27. hxg3 {[%emt 0:00:02]} Rad8 {[%emt 0:00:06]} 28. Rxd8 Rxd8 {[%emt 0:00:01]} 29. Ke1 {[%emt 0:00:17]} Rc8 {[%emt 0:00:07]} 30. b3 {[%emt 0:00:05]} f5 {[%emt 0:00:08]} 31. gxf5 {[%emt 0:00:19]} Bxf5 {[%emt 0:00:01]} 32. f4 {[%emt 0:00:01]} b6 {[%emt 0:00:13]} 33. fxg5 {[%emt 0:00:02]} hxg5 {[%emt 0:00:02]} 34. Nd5 {[%emt 0:00:06]} Kf7 {[%emt 0:00:09]} 35. e4 {[%emt 0:00:06]} Bg6 {[%emt 0:00:04]} 36. Bh3 {[%emt 0:00:03]} Re8 {[%emt 0:00:07]} 37. Bd7 {[%emt 0:00:11]} Rxe4+ {[%emt 0:00:04]} 38. Kf2 {[%emt 0:00:04]} Rd4 {[%emt 0:00:12]} 39. Ke2 {[%emt 0:00:01]} Kg7 {[%emt 0:00:08]} 40. Bb5 {[%emt 0:00:04]} Re4+ {[%emt 0:00:02]} 41. Kf3 {[%emt 0:00:01]} Re1 {[%emt 0:00:03]} 42. Nc3 {[%emt 0:00:04]} Bh5+ {[%emt 0:00:04]} 43. Kf2 {[%emt 0:00:01]} Re7 {[%emt 0:00:01]} 44. Bc6 {[%emt 0:00:01]} Rc7 {[%emt 0:00:02]} 45. Bf3 {[%emt 0:00:02]} Rf7 {[%emt 0:00:01]} 46. Ne4 {[%emt 0:00:04]} Rxf3+ {[%emt 0:00:02]} 47. Kg2 {[%emt 0:00:00]} Rf8 {[%emt 0:00:01]} 48. Nd6 {[%emt 0:00:01]} Rd8 {[%emt 0:00:02]} 49. Ne4 {[%emt 0:00:02]} Kg6 {[%emt 0:00:02]} 50. Kf2 {[%emt 0:00:02]} Rf8+ {[%emt 0:00:03]} 51. Ke3 {[%emt 0:00:01]} Re8 {[%emt 0:00:02]} 52. Kd4 {[%emt 0:00:01]} Bf3 {[%emt 0:00:02]} 53. Nd6 {[%emt 0:00:01]} Rd8 {[%emt 0:00:02]} 54. Ke5 {[%emt 0:00:02]} Bg4 {[%emt 0:00:03]} 55. Nb5 {[%emt 0:00:01]} a6 {[%emt 0:00:01]} 0-1